fUSD/lending_fUSD_20260616
["ID","MTS","AMOUNT","RATE_DAILY","PERIOD"]
[425200766,1781568665000,-1860.98029,0.00028585,7]
[425200761,1781568665000,-496.991102,0.00028585,7]
[425200763,1781568665000,-496.991102,0.00028585,7]
[425200768,1781568665000,-1860.98029,0.00028585,7]
[425200773,1781568665000,-361.31844625,0.00028589,7]
[425200758,1781568665000,-168.008817,0.00028585,7]
[425200795,1781568665000,-1066.24,0.0002863,2]
[425200810,1781568665000,-1057.32,0.00028725,2]
[425200796,1781568665000,-3066.24,0.0002863,30]
[425200825,1781568665000,-1066.24,0.0002882,2]
[425200832,1781568665000,-151.0,0.00028897,7]
[425200829,1781568665000,-1145.89,0.00028832,7]
[425200826,1781568665000,-1067.28,0.00028832,7]
[425200830,1781568665000,-1066.24,0.00028852,7]
[425200827,1781568665000,-666.82,0.00028832,7]
[425200833,1781568665000,-52975.1156492,0.000289,2]
[425200831,1781568665000,-1066.24,0.00028883,30]
[425200834,1781568665000,-16867.65,0.000289,2]
[425200835,1781568665000,-151.0,0.000289,7]
[425200824,1781568665000,-343.412775,0.000288,14]
[425200839,1781568665000,-419.095781,0.000289,7]
[425200836,1781568665000,-151.0,0.000289,7]
[425200838,1781568665000,-151.0,0.000289,7]
[425200840,1781568665000,-419.095781,0.000289,7]
[425200843,1781568665000,-542.657794,0.000289,7]
[425200842,1781568665000,-542.657794,0.000289,7]
[425200837,1781568665000,-419.095781,0.000289,7]
[425200844,1781568665000,-542.657794,0.000289,7]
[425200847,1781568665000,-16867.64,0.000289,2]
[425200846,1781568665000,-200.0,0.000289,2]
[425200797,1781568665000,-1549.26,0.0002863,30]
[425200841,1781568665000,-419.095781,0.000289,7]
[425200828,1781568665000,-1038.85,0.00028832,7]
[425200845,1781568665000,-542.657794,0.000289,7]
[425200821,1781568665000,-346.412775,0.000288,7]
[425200823,1781568665000,-346.412775,0.000288,14]
[425200799,1781568665000,-1057.32,0.0002863,2]
[425200800,1781568665000,-1066.24,0.00028661,7]
[425200804,1781568665000,-151.0,0.00028693,3]
[425200801,1781568665000,-1057.32,0.00028661,7]
[425200803,1781568665000,-1066.24,0.00028693,30]
[425200802,1781568665000,-573.0,0.00028682,10]
[425200808,1781568665000,-2151.18,0.000287,7]
[425200809,1781568665000,-1066.24,0.00028725,2]
[425200807,1781568665000,-1057.32,0.00028693,30]
[425200806,1781568665000,-151.0,0.00028693,7]
[425200805,1781568665000,-151.0,0.00028693,7]
[425200811,1781568665000,-552.0,0.00028739,3]
[425200812,1781568665000,-1066.24,0.00028756,7]
[425200818,1781568665000,-3066.24,0.00028797,7]
[425200815,1781568665000,-3419.52,0.00028797,7]
[425200822,1781568665000,-343.412775,0.000288,7]
[425200817,1781568665000,-4963.06,0.00028797,7]
[425200820,1781568665000,-4246.42,0.00028797,7]
[425200816,1781568665000,-1785.24,0.00028797,7]
[425200813,1781568665000,-1000.0,0.00028767,40]
[425200814,1781568665000,-1066.24,0.00028788,30]
[425200819,1781568665000,-1549.26,0.00028797,7]
[425200870,1781568666000,-1002.14628356,0.00029,2]
[425200869,1781568666000,-2628.53123069,0.00029,2]
[425200874,1781568666000,-151.0,0.00029,7]
[425200872,1781568666000,-239.38862747,0.00029,2]
[425200873,1781568666000,-214.69421179,0.00029,2]
[425200878,1781568666000,-161.430821,0.00029,7]
[425200875,1781568666000,-151.0,0.00029,7]
[425200876,1781568666000,-151.0,0.00029,7]
[425200884,1781568666000,-606.916781,0.00029,7]
[425200879,1781568666000,-161.430821,0.00029,7]
[425200880,1781568666000,-161.430821,0.00029,7]
[425200881,1781568666000,-606.916781,0.00029,7]
[425200883,1781568666000,-606.916781,0.00029,7]
[425200882,1781568666000,-161.430821,0.00029,7]
[425200885,1781568666000,-500.0,0.00029,2]
[425200871,1781568666000,-9030.69242811,0.00029,2]
[425200887,1781568666000,-340.412775,0.00029,7]
[425200877,1781568666000,-165.96112164,0.00029,2]
[425200868,1781568666000,-41026.77210203,0.00029,2]
[425200856,1781568666000,-40535.57923183,0.0002897,6]
[425200867,1781568666000,-42524.3077556,0.00029,2]
[425200886,1781568666000,-606.916781,0.00029,7]
[425200851,1781568666000,-1785.24,0.00028964,2]
[425200850,1781568666000,-3419.52,0.00028964,2]
[425200854,1781568666000,-1549.26,0.00028964,2]
[425200848,1781568666000,-1066.24,0.00028915,2]
[425200852,1781568666000,-4963.06,0.00028964,2]
[425200849,1781568666000,-1066.24,0.00028947,7]
[425200853,1781568666000,-3066.24,0.00028964,2]
[425200865,1781568666000,-300.0,0.00028999,10]
[425200855,1781568666000,-4246.42,0.00028964,2]
[425200858,1781568666000,-464.379773,0.0002897,7]
[425200866,1781568666000,-508.0,0.00029,10]
[425200860,1781568666000,-464.379773,0.0002897,7]
[425200859,1781568666000,-464.379773,0.0002897,7]
[425200863,1781568666000,-1066.24,0.00028979,30]
[425200864,1781568666000,-11230.47402541,0.0002899,7]
[425200862,1781568666000,-160.0,0.00028972,3]
[425200861,1781568666000,-464.379773,0.0002897,7]
[425200857,1781568666000,-151.0,0.0002897,7]
[425200889,1781568666000,-500.0,0.00029,2]
[425200893,1781568666000,-500.0,0.00029,2]
[425200890,1781568666000,-500.0,0.00029,2]
[425200915,1781568666000,-340.412775,0.00029,14]
[425200914,1781568666000,-248.82,0.00029,2]
[425200916,1781568666000,-828.26777784,0.00029,2]
[425200917,1781568666000,-500.0,0.00029,2]
[425200918,1781568666000,-650.95316086,0.00029,2]
[425200920,1781568666000,-341.441979,0.00029,14]
[425200919,1781568666000,-341.441979,0.00029,7]
[425200923,1781568666000,-1502.77,0.00029,2]
[425200912,1781568666000,-500.0,0.00029,2]
[425200921,1781568666000,-500.0,0.00029,2]
[425200924,1781568666000,-1066.24,0.0002901,2]
[425200926,1781568666000,-151.435328,0.00029063,7]
[425200925,1781568666000,-1066.24,0.00029042,7]
[425200927,1781568666000,-1066.24,0.00029074,30]
[425200930,1781568666000,-1066.24,0.00029105,2]
[425200928,1781568666000,-2097.8,0.000291,7]
[425200888,1781568666000,-500.0,0.00029,2]
[425200931,1781568666000,-151.0,0.00029119,30]
[425200922,1781568666000,-500.0,0.00029,2]
[425200913,1781568666000,-500.0,0.00029,2]
[425200929,1781568666000,-2151.18,0.000291,7]
[425200909,1781568666000,-500.0,0.00029,2]
[425200910,1781568666000,-500.0,0.00029,2]
[425200892,1781568666000,-500.0,0.00029,2]
[425200894,1781568666000,-500.0,0.00029,2]
[425200895,1781568666000,-500.0,0.00029,2]
[425200896,1781568666000,-500.0,0.00029,2]
[425200897,1781568666000,-500.0,0.00029,2]
[425200899,1781568666000,-500.0,0.00029,2]
[425200903,1781568666000,-500.0,0.00029,2]
[425200898,1781568666000,-500.0,0.00029,2]
[425200891,1781568666000,-500.0,0.00029,2]
[425200902,1781568666000,-500.0,0.00029,2]
[425200907,1781568666000,-500.0,0.00029,2]
[425200900,1781568666000,-500.0,0.00029,2]
[425200911,1781568666000,-500.0,0.00029,2]
[425200908,1781568666000,-500.0,0.00029,2]
[425200905,1781568666000,-500.0,0.00029,2]
[425200904,1781568666000,-500.0,0.00029,2]
[425200901,1781568666000,-500.0,0.00029,2]
[425200906,1781568666000,-500.0,0.00029,2]
[425200967,1781568667000,-346.412775,0.000293,7]
[425200951,1781568667000,-1549.26,0.00029132,30]
[425200956,1781568667000,-188.18,0.00029212,16]
[425200954,1781568667000,-1066.24,0.00029169,30]
[425200955,1781568667000,-1066.24,0.00029201,2]
[425200958,1781568667000,-1066.41,0.00029232,7]
[425200957,1781568667000,-200.69,0.00029212,16]
[425200963,1781568667000,-4963.06,0.00029299,7]
[425200960,1781568667000,-160.0,0.00029292,3]
[425200961,1781568667000,-3419.52,0.00029299,7]
[425200959,1781568667000,-552.0,0.00029273,4]
[425200965,1781568667000,-1549.26,0.00029299,7]
[425200968,1781568667000,-346.412775,0.000293,14]
[425200964,1781568667000,-3066.24,0.00029299,7]
[425200966,1781568667000,-4246.42,0.00029299,7]
[425200953,1781568667000,-1066.24,0.00029137,7]
[425200962,1781568667000,-1785.24,0.00029299,7]
[425200952,1781568667000,-4246.42,0.00029132,30]
[425200942,1781568667000,-1220.0,0.00029121,30]
[425200948,1781568667000,-1785.24,0.00029132,30]
[425200969,1781568667000,-338.441979,0.000293,7]
[425200933,1781568667000,-516.0,0.00029119,30]
[425200932,1781568667000,-157.0,0.00029119,30]
[425200935,1781568667000,-157.0,0.00029121,30]
[425200934,1781568667000,-184.0,0.00029119,30]
[425200936,1781568667000,-159.0,0.00029121,30]
[425200937,1781568667000,-152.0,0.00029121,30]
[425200938,1781568667000,-648.0,0.00029121,30]
[425200939,1781568667000,-158.0,0.00029121,30]
[425200940,1781568667000,-154.0,0.00029121,30]
[425200943,1781568667000,-300.0,0.0002913,7]
[425200941,1781568667000,-184.0,0.00029121,30]
[425200944,1781568667000,-151.0,0.00029132,7]
[425200945,1781568667000,-151.0,0.00029132,7]
[425200946,1781568667000,-151.0,0.00029132,7]
[425200947,1781568667000,-3419.52,0.00029132,30]
[425200949,1781568667000,-4963.06,0.00029132,30]
[425200950,1781568667000,-3066.24,0.00029132,30]
[425200970,1781568667000,-338.441979,0.000293,14]
[425200979,1781568667000,-515.06285906,0.00029445,5]
[425200972,1781568667000,-5528.0,0.000294,5]
[425200992,1781568667000,-638.61612814,0.00029445,7]
[425200991,1781568667000,-202.45675445,0.00029445,7]
[425200996,1781568667000,-289.66128846,0.00029445,7]
[425200997,1781568667000,-202.4671844,0.00029445,7]
[425200999,1781568667000,-451.49378929,0.00029445,7]
[425201000,1781568667000,-559.20850664,0.00029445,7]
[425201002,1781568667000,-490.78676215,0.00029445,7]
[425200998,1781568667000,-450.93590902,0.00029445,7]
[425201008,1781568667000,-393.92513854,0.00029445,7]
[425201001,1781568667000,-671.20580178,0.00029445,7]
[425201010,1781568667000,-621.55325057,0.00029445,7]
[425201004,1781568667000,-165.50677754,0.00029445,7]
[425201005,1781568667000,-225.70663089,0.00029445,7]
[425201006,1781568667000,-606.4918202,0.00029445,7]
[425201007,1781568667000,-395.35971973,0.00029445,5]
[425200971,1781568667000,-300.0,0.0002933,7]
[425201003,1781568667000,-217.46657384,0.00029445,7]
[425200995,1781568667000,-553.9756296,0.00029445,7]
[425201009,1781568667000,-735.90944954,0.00029445,7]
[425200993,1781568667000,-232.82069373,0.00029445,7]
[425200974,1781568667000,-589.67462088,0.00029445,7]
[425200994,1781568667000,-531.32541513,0.00029445,7]
[425200975,1781568667000,-524.83551616,0.00029445,7]
[425200973,1781568667000,-473.96689745,0.00029445,7]
[425200977,1781568667000,-307.14559469,0.00029445,7]
[425200978,1781568667000,-507.09059383,0.00029445,7]
[425200987,1781568667000,-267.69545994,0.00029445,7]
[425200980,1781568667000,-512.95344117,0.00029445,7]
[425200976,1781568667000,-483.35957429,0.00029445,7]
[425200981,1781568667000,-233.93731555,0.00029445,7]
[425200986,1781568667000,-246.69426731,0.00029445,7]
[425200982,1781568667000,-211.86948678,0.00029445,7]
[425200984,1781568667000,-227.13480141,0.00029445,7]
[425200983,1781568667000,-501.25982752,0.00029445,2]
[425200985,1781568667000,-491.07824823,0.00029445,7]
[425200988,1781568667000,-505.89476173,0.00029445,7]
[425200989,1781568667000,-940.49402957,0.00029445,7]
[425200990,1781568667000,-547.58693852,0.00029445,7]
[425201037,1781568668000,-1072.06073528,0.00029508,5]
[425201044,1781568668000,-1885.65780476,0.00029508,5]
[425201042,1781568668000,-1009.66306588,0.00029508,5]
[425201039,1781568668000,-1138.99828932,0.00029508,5]
[425201038,1781568668000,-1107.5574323,0.00029508,5]
[425201036,1781568668000,-1074.99691111,0.00029508,5]
[425201047,1781568668000,-343.412775,0.000296,7]
[425201043,1781568668000,-1001.68752129,0.00029508,5]
[425201041,1781568668000,-1039.37600932,0.00029508,5]
[425201040,1781568668000,-1065.65096772,0.00029508,5]
[425201057,1781568668000,-151.0,0.000298,7]
[425201045,1781568668000,-301.81411277,0.0002953,7]
[425201048,1781568668000,-343.412775,0.000296,14]
[425201050,1781568668000,-151.0,0.00029797,7]
[425201051,1781568668000,-151.0,0.00029797,7]
[425201049,1781568668000,-2151.18,0.000296,7]
[425201052,1781568668000,-300.0,0.00029799,10]
[425201056,1781568668000,-267.147153,0.000298,7]
[425201054,1781568668000,-151.0,0.000298,7]
[425201033,1781568668000,-300.64352327,0.0002946,7]
[425201046,1781568668000,-150.0,0.00029534,2]
[425201029,1781568668000,-219.08480344,0.0002946,7]
[425201016,1781568668000,-189.43377575,0.00029445,7]
[425201030,1781568668000,-258.65113165,0.0002946,7]
[425201011,1781568668000,-450.67094483,0.00029445,7]
[425201012,1781568668000,-482.16176211,0.00029445,7]
[425201015,1781568668000,-376.93534365,0.00029445,7]
[425201018,1781568668000,-436.07532407,0.0002945,7]
[425201059,1781568668000,-161.430821,0.000298,7]
[425201014,1781568668000,-235.59701786,0.00029445,7]
[425201017,1781568668000,-174.97618781,0.0002945,7]
[425201019,1781568668000,-571.27773093,0.0002945,7]
[425201022,1781568668000,-474.71584955,0.0002945,7]
[425201021,1781568668000,-499.03487601,0.0002945,7]
[425201013,1781568668000,-487.01314678,0.00029445,7]
[425201020,1781568668000,-218.16141472,0.0002945,7]
[425201023,1781568668000,-576.90718205,0.0002945,7]
[425201024,1781568668000,-581.67550482,0.0002945,7]
[425201025,1781568668000,-541.97766937,0.0002945,7]
[425201026,1781568668000,-272.41782362,0.0002945,7]
[425201027,1781568668000,-622.08898426,0.0002945,7]
[425201028,1781568668000,-469.11608202,0.0002945,7]
[425201032,1781568668000,-361.89712458,0.0002946,7]
[425201035,1781568668000,-160.0,0.0002946,3]
[425201031,1781568668000,-309.80918707,0.0002946,7]
[425201034,1781568668000,-379.21125702,0.0002946,7]
[425201058,1781568668000,-151.0,0.000298,7]
[425201064,1781568668000,-606.916781,0.000298,7]
[425201055,1781568668000,-201.497702,0.000298,7]
[425201097,1781568668000,-1860.98029,0.000298,7]
[425201087,1781568668000,-542.657794,0.000298,7]
[425201086,1781568668000,-542.657794,0.000298,7]
[425201096,1781568668000,-1860.98029,0.000298,7]
[425201088,1781568668000,-168.008817,0.000298,7]
[425201090,1781568668000,-168.008817,0.000298,7]
[425201089,1781568668000,-168.008817,0.000298,7]
[425201092,1781568668000,-496.991102,0.000298,7]
[425201053,1781568668000,-2152159.35830551,0.000298,2]
[425201085,1781568668000,-542.657794,0.000298,7]
[425201095,1781568668000,-496.991102,0.000298,7]
[425201094,1781568668000,-496.991102,0.000298,7]
[425201098,1781568668000,-1860.98029,0.000298,7]
[425201099,1781568668000,-1860.98029,0.000298,7]
[425201104,1781568668000,-427.0,0.00029808,14]
[425201103,1781568668000,-552.0,0.00029807,4]
[425201102,1781568668000,-151.0,0.000298,7]
[425201101,1781568668000,-151.0,0.000298,7]
[425201100,1781568668000,-288.51767,0.000298,7]
[425201105,1781568668000,-56.60818897,0.00029808,14]
[425201091,1781568668000,-168.008817,0.000298,7]
[425201084,1781568668000,-269.982709,0.000298,7]
[425201093,1781568668000,-496.991102,0.000298,7]
[425201078,1781568668000,-419.095781,0.000298,7]
[425201076,1781568668000,-151.0,0.000298,7]
[425201060,1781568668000,-161.430821,0.000298,7]
[425201062,1781568668000,-606.916781,0.000298,7]
[425201072,1781568668000,-1106.26,0.000298,7]
[425201061,1781568668000,-161.430821,0.000298,7]
[425201065,1781568668000,-606.916781,0.000298,7]
[425201063,1781568668000,-161.430821,0.000298,7]
[425201067,1781568668000,-151.0,0.000298,7]
[425201068,1781568668000,-464.379773,0.000298,7]
[425201066,1781568668000,-606.916781,0.000298,7]
[425201069,1781568668000,-464.379773,0.000298,7]
[425201071,1781568668000,-464.379773,0.000298,7]
[425201073,1781568668000,-151.0,0.000298,7]
[425201075,1781568668000,-419.095781,0.000298,7]
[425201074,1781568668000,-151.0,0.000298,7]
[425201080,1781568668000,-542.657794,0.000298,7]
[425201081,1781568668000,-269.982709,0.000298,7]
[425201083,1781568668000,-269.982709,0.000298,7]
[425201077,1781568668000,-419.095781,0.000298,7]
[425201082,1781568668000,-269.982709,0.000298,7]
[425201079,1781568668000,-419.095781,0.000298,7]
[425201070,1781568668000,-464.379773,0.000298,7]
[425201107,1781568670000,-1126.0,9.041e-05,2]
[425201106,1781568670000,-150.0,7.089e-05,2]
[425201110,1781568670000,-1057.32,0.0002882,2]
[425201111,1781568670000,-1057.32,0.00028852,7]
[425201113,1781568670000,-1057.32,0.00028915,2]
[425201109,1781568670000,-1057.32,0.00028788,30]
[425201112,1781568670000,-1057.32,0.00028883,30]
[425201108,1781568670000,-1057.32,0.00028756,7]
[425201116,1781568671000,-725.43255534,0.0002901,2]
[425201114,1781568671000,-1057.32,0.00028947,7]
[425201115,1781568671000,-1057.32,0.00028979,30]
[425201117,1781568671000,-331.88744466,0.0002901,2]
[425201120,1781568671000,-663.09,0.00019486,3]
[425201119,1781568671000,-2308.559843,0.00019486,3]
[425201118,1781568671000,-659.23123534,0.00029042,7]
[425201126,1781568672000,300.0,9.571e-05,2]
[425201125,1781568672000,300.0,9.571e-05,2]
[425201124,1781568672000,300.0,9.571e-05,2]
[425201123,1781568672000,300.0,9.571e-05,2]
[425201122,1781568672000,300.0,9.571e-05,2]
[425201121,1781568672000,232.0723771,0.0003011,120]
[425201127,1781568673000,300.0,9.798e-05,2]
[425201129,1781568673000,362.51921391,9.798e-05,2]
[425201128,1781568673000,500.0,9.798e-05,2]
[425201130,1781568729000,-7881.44423444,7.306e-05,2]
[425201131,1781568750000,-151.0,7.303e-05,2]
[425201132,1781568967000,-2662.51921391,7.16e-05,2]
[425201133,1781568989000,-201.39678609,7.16e-05,2]
[425201134,1781569041000,-270.491,7.16e-05,2]
[425201135,1781569094000,-250.0,7.233e-05,2]
[425201136,1781569149000,-332.22955013,7.278e-05,2]
[425201137,1781569202000,-218.79236086,7.303e-05,2]
[425201138,1781569226000,1000.0,0.0003,120]
[425201139,1781569256000,-500.0,7.303e-05,2]
[425201142,1781569274000,643.0,0.00029958,120]
[425201141,1781569274000,643.0,0.00029958,120]
[425201140,1781569274000,643.0,0.00029958,120]
[425201145,1781569275000,643.0,0.00029958,120]
[425201144,1781569275000,643.0,0.00029958,120]
[425201143,1781569275000,643.0,0.00029958,120]
[425201147,1781569276000,643.0,0.00029958,120]
[425201146,1781569276000,643.0,0.00029958,120]
[425201149,1781569276000,648.0,0.00029958,120]
[425201148,1781569276000,643.0,0.00029958,120]
[425201154,1781569279000,643.0,0.00029684,120]
[425201153,1781569279000,643.0,0.00029684,120]
[425201152,1781569279000,643.0,0.00029684,120]
[425201151,1781569279000,643.0,0.00029684,120]
[425201150,1781569279000,643.0,0.00029684,120]
[425201156,1781569280000,643.0,0.00029684,120]
[425201155,1781569280000,643.0,0.00029684,120]
[425201158,1781569280000,643.0,0.00029684,120]
[425201157,1781569280000,643.0,0.00029684,120]
[425201159,1781569281000,648.0,0.00029684,120]
[425201160,1781569308000,-151.0,7.303e-05,2]
[425201164,1781569332000,500.0,0.0002941,120]
[425201163,1781569332000,500.0,0.0002941,120]
[425201162,1781569332000,500.0,0.0002941,120]
[425201161,1781569332000,500.0,0.0002941,120]
[425201165,1781569333000,500.0,0.0002941,120]
[425201166,1781569334000,500.0,0.00029136,120]
[425201167,1781569335000,500.0,0.00029136,120]
[425201169,1781569335000,615.094,0.00029136,120]
[425201168,1781569335000,500.0,0.00029136,120]
[425201171,1781569337000,500.0,0.00028862,120]
[425201170,1781569337000,500.0,0.00028862,120]
[425201173,1781569338000,770.0,0.00028862,120]
[425201172,1781569338000,500.0,0.00028862,120]
[425201174,1781569362000,-150.0,7.303e-05,2]
[425201175,1781569415000,-1062.67709318,7.303e-05,2]
[425201185,1781569417000,108.42879077,7.16e-05,2]
[425201184,1781569417000,107.96420923,7.16e-05,2]
[425201182,1781569417000,312.15255407,7.16e-05,2]
[425201180,1781569417000,174.35427853,7.16e-05,2]
[425201181,1781569417000,499.99392503,7.16e-05,2]
[425201179,1781569417000,248.15362099,7.16e-05,2]
[425201178,1781569417000,228.44176369,7.16e-05,2]
[425201176,1781569417000,500.0,7.16e-05,2]
[425201177,1781569417000,248.15362099,7.16e-05,2]
[425201183,1781569417000,79.8832367,7.16e-05,2]
[425201186,1781569645000,-607.77801282,7.303e-05,2]
[425201187,1781569698000,-150.0,7.303e-05,2]
[425201202,1781569699000,672.88183578,7.204e-05,2]
[425201188,1781569699000,259.72610956,7.204e-05,2]
[425201190,1781569699000,500.0,7.204e-05,2]
[425201191,1781569699000,151.0,7.204e-05,2]
[425201189,1781569699000,384.47525705,7.204e-05,2]
[425201192,1781569699000,286.26295732,7.204e-05,2]
[425201201,1781569699000,449.60840094,7.204e-05,2]
[425201194,1781569699000,166.66,7.204e-05,2]
[425201195,1781569699000,157.47,7.204e-05,2]
[425201196,1781569699000,268.82459729,7.204e-05,2]
[425201197,1781569699000,175.87,7.204e-05,2]
[425201199,1781569699000,277.739474,7.204e-05,2]
[425201198,1781569699000,153.0,7.204e-05,2]
[425201200,1781569699000,169.36118349,7.204e-05,2]
[425201193,1781569699000,350.0,7.204e-05,2]
[425201203,1781569700000,166.66,7.204e-05,2]
[425201206,1781569700000,153.0,7.204e-05,2]
[425201204,1781569700000,157.47,7.204e-05,2]
[425201207,1781569700000,244.50225741,7.204e-05,2]
[425201209,1781569700000,156.42711952,7.204e-05,2]
[425201208,1781569700000,264.61159992,7.204e-05,2]
[425201205,1781569700000,188.57176076,7.204e-05,2]
[425201210,1781569754000,-158.14099276,7.203e-05,2]
[425201214,1781569756000,-517.53776797,7.203e-05,2]
[425201213,1781569756000,-500.0,7.203e-05,2]
[425201211,1781569756000,-153.1546526,7.203e-05,2]
[425201212,1781569756000,-500.0,7.203e-05,2]
[425201215,1781569807000,-112.78223736,7.203e-05,2]
[425201216,1781569810000,-204.31126186,7.203e-05,2]
[425201217,1781569810000,-500.0,7.203e-05,2]
[425201221,1781569810000,-292.57145213,7.203e-05,2]
[425201220,1781569810000,-500.0,7.203e-05,2]
[425201219,1781569810000,-500.0,7.203e-05,2]
[425201218,1781569810000,-500.0,7.203e-05,2]
[425201223,1781569811000,-458.73515905,7.203e-05,2]
[425201222,1781569811000,-207.42854787,7.203e-05,2]
[425201224,1781569811000,-41.26484095,7.203e-05,2]
[425201228,1781569811000,-500.0,7.203e-05,2]
[425201226,1781569811000,-500.0,7.203e-05,2]
[425201227,1781569811000,-500.0,7.203e-05,2]
[425201229,1781569811000,-455.61787304,7.203e-05,2]
[425201225,1781569811000,-500.0,7.203e-05,2]
[425201238,1781569831000,-500.0,7.203e-05,2]
[425201231,1781569831000,-44.38212696,7.203e-05,2]
[425201234,1781569831000,-500.0,7.203e-05,2]
[425201232,1781569831000,-500.0,7.203e-05,2]
[425201233,1781569831000,-500.0,7.203e-05,2]
[425201235,1781569831000,-500.0,7.203e-05,2]
[425201236,1781569831000,-500.0,7.203e-05,2]
[425201237,1781569831000,-500.0,7.203e-05,2]
[425201243,1781569831000,-500.0,7.203e-05,2]
[425201246,1781569831000,-500.0,7.203e-05,2]
[425201247,1781569831000,-500.0,7.203e-05,2]
[425201239,1781569831000,-500.0,7.203e-05,2]
[425201241,1781569831000,-500.0,7.203e-05,2]
[425201242,1781569831000,-500.0,7.203e-05,2]
[425201244,1781569831000,-500.0,7.203e-05,2]
[425201245,1781569831000,-500.0,7.203e-05,2]
[425201240,1781569831000,-500.0,7.203e-05,2]
[425201262,1781569832000,-500.0,7.203e-05,2]
[425201256,1781569832000,-500.0,7.203e-05,2]
[425201260,1781569832000,-500.0,7.203e-05,2]
[425201264,1781569832000,-500.0,7.203e-05,2]
[425201257,1781569832000,-500.0,7.203e-05,2]
[425201261,1781569832000,-500.0,7.203e-05,2]
[425201252,1781569832000,-500.0,7.203e-05,2]
[425201255,1781569832000,-500.0,7.203e-05,2]
[425201254,1781569832000,-500.0,7.203e-05,2]
[425201251,1781569832000,-500.0,7.203e-05,2]
[425201250,1781569832000,-500.0,7.203e-05,2]
[425201253,1781569832000,-500.0,7.203e-05,2]
[425201259,1781569832000,-500.0,7.203e-05,2]
[425201258,1781569832000,-500.0,7.203e-05,2]
[425201263,1781569832000,-500.0,7.203e-05,2]
[425201280,1781569832000,-407.7352125,7.204e-05,2]
[425201266,1781569832000,-500.0,7.203e-05,2]
[425201276,1781569832000,-3608.08760025,7.204e-05,2]
[425201279,1781569832000,-69219.35562158,7.204e-05,2]
[425201265,1781569832000,-500.0,7.203e-05,2]
[425201277,1781569832000,-105494.75132031,7.204e-05,2]
[425201275,1781569832000,-216.09656886,7.203e-05,2]
[425201274,1781569832000,-500.0,7.203e-05,2]
[425201278,1781569832000,-22995.37961877,7.204e-05,2]
[425201269,1781569832000,-500.0,7.203e-05,2]
[425201271,1781569832000,-500.0,7.203e-05,2]
[425201270,1781569832000,-500.0,7.203e-05,2]
[425201268,1781569832000,-232.24895954,7.203e-05,2]
[425201272,1781569832000,-500.0,7.203e-05,2]
[425201267,1781569832000,-500.0,7.203e-05,2]
[425201273,1781569832000,-500.0,7.203e-05,2]
[425201282,1781569837000,-11381.36743238,7.204e-05,2]
[425201283,1781569837000,-719.5,7.204e-05,2]
[425201284,1781569839000,-996.40240722,7.204e-05,2]
[425201286,1781569839000,-1575.89458691,7.204e-05,2]
[425201285,1781569839000,-152792.58742625,7.204e-05,2]
[425201292,1781569839000,-250.0,8.033e-05,2]
[425201287,1781569839000,-1411.85707281,7.204e-05,2]
[425201289,1781569839000,-3172.55302727,7.204e-05,2]
[425201291,1781569839000,-160.0,7.341e-05,2]
[425201288,1781569839000,-3902.87727727,7.204e-05,2]
[425201293,1781569839000,-4659.436095,8.178e-05,2]
[425201295,1781569839000,-500.0,8.219e-05,2]